Cogmind - Beta 14 @@@ ROGUE MODE // 2024.11.03 @ 18:40:00 Player: corey Result: Destroyed by G-47 Trooper with Particle Gun Performance ------------- Evolutions (1) 500 Regions Visited (2) 400 Robots Destroyed (15) 75 Value Destroyed (443) 443 Prototype IDs (3) 60 Alien Tech Used (0) 0 Bonus (0) 0 TOTAL SCORE: 1478 Bonus ------- None Cogmind --------- Core Integrity 0/400 Matter 244/300 Energy 100/100 System Corruption 8% Temperature Cool (9) Movement Core (350) Ox6 Location -9/Materials Parts ------- > --- POWER (1) -------- (None) > --- PROPULSION (3) --- (None) > --- UTILITY (3) ------ Large Storage Unit > --- WEAPON (2) ------- (None) > --- INVENTORY (15) --- Light Ion Engine Light Nuclear Core Aluminum Leg Hover Unit Improved Heat Sink Large Matter Pod (117) Improved EM Shotgun Autogun Autogun Improved Light Cannon Improved Light Cannon Rocket Launcher Rocket Launcher Mini Grenade Launcher Flail Peak State ------------ > --- POWER ------------ Light Nuclear Core > --- PROPULSION ------- Aluminum Leg Aluminum Leg Aluminum Leg > --- UTILITY ---------- Large Storage Unit Structural Scanner Signal Interpreter > --- WEAPON ----------- Improved EM Shotgun Flail > --- INVENTORY -------- Light Ion Engine Light Nuclear Core Aluminum Leg Hover Unit Hover Unit Improved Heat Sink Large Matter Pod Autogun Autogun Autogun Light Cannon Rocket Launcher Rocket Launcher Mini Grenade Launcher [Rating: 16] Favorites ----------- Power Light Ion Engine Engine Light Ion Engine Power Core Light Nuclear Core Propulsion Aluminum Leg Leg Aluminum Leg Utility Signal Interpreter Device Structural Scanner Storage Large Storage Unit Processor Signal Interpreter Weapon Autogun Energy Gun Improved EM Shotgun Ballistic Gun Autogun Impact Weapon Flail Build | -11 -10 -9 ------- Run | Yrd Mat Mat Slots Evolved 2 | . . 2 Power . | . . . Propulsion 1 | . . 1 Utility 1 | . . 1 Weapon . | . . . Parts Attached 18 | 6 7 5 Power 2 | 1 1 . Engine 1 | 1 . . Core 1 | . 1 . Reactor . | . . . Propulsion 3 | 2 . 1 Treads . | . . . Leg 3 | 2 . 1 Wheel . | . . . Hover . | . . . Flight . | . . . Utility 6 | 1 4 1 Device 2 | . 1 1 Storage 3 | 1 2 . Processor 1 | . 1 . Hackware . | . . . Protection . | . . . Artifact . | . . . Weapon 7 | 2 2 3 Energy Gun 1 | . . 1 Energy Cannon . | . . . Ballistic Gun 5 | 2 2 1 Ballistic Cannon . | . . . Launcher . | . . . Special Weapon . | . . . Impact Weapon 1 | . . 1 Slashing Weapon . | . . . Piercing Weapon . | . . . Special Melee Weapon . | . . . Unidentified Prototypes 1 | . . 1 Parts Lost 7 | . . 7 Power 1 | . . 1 Propulsion 3 | . . 3 Utility 1 | . . 1 Weapon 2 | . . 2 Highest Loss Streak 7 | . . 7 To Critical Strikes 1 | . . 1 Average Slot Usage (%) 98 | . 99 91 Engine 10 | . 13 . Core 2 | . . 10 Leg 28 | . 28 29 Device 3 | . 2 9 Storage 13 | . 14 11 Processor 11 | . 11 10 Energy Gun 1 | . . 6 Ballistic Gun 24 | . 28 10 Peak Build Rating 16 | 6 13 16 Average Rating 9 | 4 8 14 On Entrance 6 | . 6 13 Naked Turns . | . . . Heaviest Build 32 | 11 31 32 Greatest Support 30 | 20 20 30 Greatest Overweight (x) 6 | 1 1 6 Average Overweight (x) . | . . 1 Largest Inventory Capacity 15 | 8 15 15 Average Capacity 13 | 7 13 15 Most Carried 15 | 4 15 15 Average Carried 11 | 2 11 14 Final Capacity 15 | 8 15 15 Final Carried 15 | 4 15 15 Class Distribution -------------------- 100% | Mutant Dominant Class ---------------- Mutant | -10/Materials Mutant | -9/Materials Resources | -11 -10 -9 ----------- Run | Yrd Mat Mat Matter Collected 574 | 219 355 . Remotely . | . . . Salvage Created 472 | . 199 273 Parts 31 | . 14 17 Haulers Intercepted . | . . . Recyclers Shooed 1 | . 1 . Parts Field Recycled . | . . . Retrieved Matter . | . . . Parts Self-Destructed . | . . . Prevented . | . . . Kills | -11 -10 -9 ------- Run | Yrd Mat Mat Combat Hostiles Destroyed 10 | . 4 6 Guns 8 | . 4 4 AOE 2 | . . 2 Classes Destroyed 6 | . 3 3 Worker 1 | . 1 . Recycler 1 | . . 1 Operator 1 | . . 1 Watcher 2 | . 2 . Grunt 9 | . 4 5 Brawler 1 | . . 1 Best Kill Streak 8 | . 1 8 Combat Bots Only 6 | . 1 6 Max Kills in Single Turn 4 | . 1 4 Gunslinging . | . . . Exploded 2 | . . 2 Melee . | . . . Uniques/NPCs Destroyed . | . . . Combat | -11 -10 -9 -------- Run | Yrd Mat Mat Hostile Shots Fired 91 | . 21 70 Missed 20 | . 5 15 Damage Taken 1171 | . 213 958 Core 442 | . 27 415 Absorbed by Shields . | . . . Core Remaining (%) 94 | 100 89 . Volleys Fired 33 | . 22 11 Largest 2 | . 2 2 Hottest 68 | . 46 68 Shots Fired 63 | . 44 19 Gun 63 | . 44 19 Cannon . | . . . Launcher . | . . . Special . | . . . Kinetic 52 | . 44 8 Thermal . | . . . Explosive . | . . . Electromagnetic 11 | . . 11 Robot Hit Streak 9 | . 8 9 Robot Miss Streak 4 | . 4 1 Penetration Max . | . . . Secondary Targets 2 | . . 2 Max Gunslinging Chain 1 | . . 1 Shots Hit Robots 45 | . 29 16 Core Hits 25 | . 14 11 Critical Kills 1 | . 1 . Critical Parts Destroyed . | . . . Critical Strikes 1 | . 1 . Destroy 1 | . 1 . Melee Attacks 1 | . . 1 Impact 1 | . . 1 Slashing . | . . . Piercing . | . . . Sneak Attacks . | . . . Combat Hostiles . | . . . Follow-up Attacks . | . . . Damage Inflicted 1266 | . 344 922 Guns 587 | . 339 248 Cannons . | . . . Explosions 674 | . . 674 Melee . | . . . Ramming 5 | . 5 . Kinetic 405 | . 339 66 Thermal 129 | . . 129 Explosive 545 | . . 545 Electromagnetic 182 | . . 182 Impact . | . . . Slashing . | . . . Piercing . | . . . Highest Corruption 8 | . 3 8 Average Corruption 2 | . 2 8 Corruption Purged . | . . . Corruption Blocked . | . . . Effects 11 | . 10 1 Message Errors 4 | . 3 1 Matter Fused 3 | . 3 . Heat Flow Errors 2 | . 2 . Energy Discharges 1 | . 1 . Data Loss (minor) 1 | . 1 . Overload Shots . | . . . Overflow Damage 76 | . . 76 Projectiles . | . . . Explosions 76 | . . 76 Melee . | . . . Knockbacks . | . . . Impact . | . . . Kinetic . | . . . Secondary . | . . . Self-Inflicted Damage 161 | . . 161 Shots 2 | . . 2 Rammed . | . . . Targets Rammed 2 | . 2 . Kicked 2 | . 2 . Crushed . | . . . Highest Temperature 265 | . 265 172 Average Temperature 64 | . 58 71 Received Heat Transfer 459 | . 120 339 Siege Activations . | . . . Robots Corrupted . | . . . Combat Hostiles . | . . . Parts Fried . | . . . Impact Corruptions . | . . . Robots Melted . | . . . Combat Hostiles . | . . . Parts Melted . | . . . Heat Transferred 200 | . . 200 Parts Sabotaged . | . . . Parts Stolen . | . . . Parts Stripped . | . . . Power Chain Reactions 1 | . . 1 Alert | -11 -10 -9 ------- Run | Yrd Mat Mat Peak Influence 206 | . 117 206 Initial 35 | . . 35 Average 27 | . 23 55 Maximum Alert Level 1 | . . 1 Low Security (%) 99 | 100 100 96 Level 1 . | . . 3 Level 2 . | . . . Level 3 . | . . . Level 4 . | . . . Level 5 . | . . . High Security . | . . . Max Security . | . . . Squads Dispatched 3 | . . 3 Investigation 1 | . . 1 Extermination . | . . . Reinforcement 2 | . . 2 Assault . | . . . Garrison . | . . . Intercept . | . . . Searches Triggered . | . . . Construction Impeded . | . . . Haulers Reinforced . | . . . Active Scanning Responses . | . . . Cargo Convoy Interrupts . | . . . Stealth | -11 -10 -9 --------- Run | Yrd Mat Mat Distress Signals 1 | . . 1 Communications Jammed . | . . . Distress Signals . | . . . Times Spotted 29 | . 13 16 Peak Tracking Total 10 | . 2 10 Tactical Retreats 2 | . 2 . Traps | -11 -10 -9 ------- Run | Yrd Mat Mat Traps Triggered 3 | . 2 1 Indirectly . | . . . Trap Hack Attempts . | . . . Triggered . | . . . Disarmed . | . . . Reprogrammed . | . . . Reused . | . . . Traps Extracted . | . . . Installed . | . . . Triggered . | . . . Machines | -11 -10 -9 ---------- Run | Yrd Mat Mat Machines Disabled 2 | . . 2 Max in Single Turn 2 | . . 2 Machines Repaired . | . . . Machines Dismantled . | . . . Machines Sabotaged . | . . . Overloaded Fab Kills . | . . . Hacking | -11 -10 -9 --------- Run | Yrd Mat Mat Machines Accessed 3 | . 3 . Terminals 3 | . 3 . Fabricators . | . . . Repair Stations . | . . . Recycling Units . | . . . Scanalyzers . | . . . Garrison Access . | . . . Total Hacks 3 | . 3 . Successful 1 | . 1 . Failed 2 | . 2 . Catastrophic . | . . . Database Lockouts . | . . . Manual 2 | . 2 . Terminals 3 | . 3 . Fabricators . | . . . Repair Stations . | . . . Recycling Units . | . . . Scanalyzers . | . . . Garrison Access . | . . . Terminal Hacks 1 | . 1 . Prototype ID Bank 1 | . 1 . Fabricator Hacks . | . . . Repair Station Hacks . | . . . Recycling Unit Hacks . | . . . Scanalyzer . | . . . Garrison Access Hacks . | . . . Unauthorized Hacks . | . . . Terminals . | . . . Fabricators . | . . . Repair Stations . | . . . Recycling Units . | . . . Scanalyzers . | . . . Garrison Access . | . . . Data Cores Recovered . | . . . Used . | . . . Hacking Detections 2 | . 2 . Full Trace Events . | . . . Feedback Events . | . . . Feedback Blocked . | . . . Robot Schematics Acquired . | . . . Robots Built . | . . . Authchips . | . . . Time . | . . . Total Robot Build Rating . | . . . Part Schematics Acquired . | . . . Parts Built . | . . . Authchips . | . . . Time . | . . . Total Part Build Rating . | . . . Parts Repaired . | . . . Time . | . . . Parts Recycled . | . . . Recycled Matter . | . . . Retrieved Matter . | . . . Retrieved Components . | . . . Parts Scanalyzed . | . . . Part Schematics Acquired . | . . . Parts Damaged . | . . . Bothacking | -11 -10 -9 ------------ Run | Yrd Mat Mat Used RIF Installer . | . . . Robots Hacked . | . . . Non-combat . | . . . Combat . | . . . Robot Hacks Applied . | . . . Relay Couplers Released . | . . . Fabnet Peak Effective % . | . . . Robots Rewired . | . . . Allies Hacked . | . . . Hacks Repelled . | . . . Allies | -11 -10 -9 -------- Run | Yrd Mat Mat Total Allies . | . . . Largest Group . | . . . Highest-Rated Group . | . . . Highest-Rated Ally . | . . . Total Orders . | . . . Ally Attacks . | . . . Total Damage . | . . . Kills . | . . . Allies Corrupted . | . . . Allies Melted . | . . . Intel | -11 -10 -9 ------- Run | Yrd Mat Mat Robot Analysis Total . | . . . Derelict Logs Recovered . | . . . Drone Launches . | . . . Drone Recoveries . | . . . Exploration | -11 -10 -9 ------------- Run | Yrd Mat Mat Turns Passed 1324 | 70 1029 225 Spaces Moved 677 | 52 533 92 Core 20 | 15 . 5 Treads . | . . . Legs 657 | 37 533 87 Wheels . | . . . Hover . | . . . Flight . | . . . Fastest Speed 50 | 50 120 190 Average Speed 166 | 110 166 198 Slowest Speed 350 | 120 190 350 Overloaded Moves . | . . . Propulsion Burnouts . | . . . Robots Hopped . | . . . Cave-ins Triggered . | . . . Exploration Rate (%) 31 | 4 72 19 Regions Visited 2 Branch Regions . Pre-discovered Areas . | . . . Known Exits Taken 1 | . 1 . Unknown Exits Taken 1 | 1 . . Scrap Searched . | . . . Spaces Dug 1 | . . 1 Terrain Destroyed 18 | . . 18 Melee 1 | . . 1 Projectile . | . . . AOE 17 | . . 17 Terrain Rammed . | . . . Walls Destroyed . | . . . Machines Disabled . | . . . Actions | -11 -10 -9 --------- Run | Yrd Mat Mat Total 817 | 62 639 116 Wait 46 | . 46 . Move 675 | 51 532 92 Hop . | . . . Pick Up 26 | 5 17 4 Fast Attach 8 | 5 2 1 Attach 3 | 1 . 2 Detach 1 | . 1 . Swap 7 | . 5 2 Drop 15 | . 12 3 Fire 33 | . 22 11 Melee 1 | . . 1 Ram . | . . . Kick 2 | . 2 . Crush . | . . . Escape Stasis . | . . . Rewire . | . . . Trap . | . . . Miscellaneous . | . . . Route ------- -11/Scrapyard -10/Materials (discovered 3 exits: *Mat x3) -9/Materials History --------- Turn | Location | Event 13 | -11/Scrapyard | Discovered new exit (range 14) 71 | -11/Scrapyard | Entered Materials 300 | -10/Materials | Build established: Mutant 313 | -10/Materials | Discovered new exit (range 6) 318 | -10/Materials | Identified exit to Materials 654 | -10/Materials | Discovered exit to Materials (range 10) 756 | -10/Materials | Discovered exit to Materials (range 16) 1100 | -10/Materials | Entered another Materials area 1100 | -9/Materials | Evolved 2 slots: Propulsion x1, Utility x1 1306 | -9/Materials | Core integrity fell below 50% 1315 | -9/Materials | Core integrity fell below 20% 1325 | -9/Materials | Destroyed by G-47 Trooper with Particle Gun Last Messages --------------- 01297_ Terminal disabled. 01302_ The unstable cave ceiling collapses. 01303_ R-06 Scavenger collects Aluminum Leg. 01304_ Autogun destroyed. 01305_ U-05 Engineer builds a Door. 01305_ Imp. EM Shotgun destroyed. 01305_ Aluminum Leg destroyed. 01306_ Lgt. Nuclear Core destroyed. 01306_ R-06 Scavenger collects Aluminum Leg. 01307_ Aluminum Leg destroyed. 01309_ U-05 Engineer lays Concrete. 01309_ R-06 Scavenger collects Aluminum Leg. 01310_ U-05 Engineer lays Concrete. 01310_ U-05 Engineer builds a Wall. 01311_ The unstable cave ceiling collapses. 01311_ U-05 Engineer lays Concrete. 01312_ U-05 Engineer builds a Wall. 01315_ U-05 Engineer lays Concrete. 01317_ Signal Interpreter severed. 01322_ MD M F60YGVQXO44XOG>BWPEU1 O Map ----- +----------------------------------------------------+ | ????????????????????????????????? | | ????????????????????????????????? | | ????????????????????????????????? | | ????????????????????????????????? | | ????????????????????????????????? | | ????????????????????????????????? | | ????????????????????????????????? | | ????????????????????????????????? | | ????????????????????????????????? | | ????????????????????????????????? | | ????????????????????????????????? | | ????????????????????????????????? | | ????????????????????????????????? | | ????????????????????????????????? | | ????????????????????????????????? | | ????????????????????????????????? | | ????????????????????????????????? | | ????????????????????????????????? | | ??????????????#?????????????????? | | ????????????? ####??????????????? | | ????????????? #??????????????? | | ??????????? # # ?????????????? | | ?????????#+## # ?????????????? | | ????????? + ?????????????? | | ??#####+## # ?????????????? | | ??# @# [[ # ?????????????? | | ??# """lg *[ # ?????????????? | | ??# """Y# ##?????????????? | | ??# """ # ##?????????????? | | ??# g g/ u ##?????????????? | | ??# [ # # ##?????????????? | | ??##### ######## ###???? | | ???## %# ########+###???? | | ???## # ##???? | | ???## [ = # ##???? | | ???## % %] # """ ##???? | | ???## = % / """"" ##???? | | ???## *%=% # # """"" ##???? | | ???## " ![ # """"" ##???? | | ???## """ # # """ ##??? | | ???## # # #### | | ???########### #####/######## | | ???########### ]] | | ????????????## ^ ]] | | ????????????## | | ????????????######### ^ | | ????????????#########"" | | ???????????????????##"" ^ | | ???????????????????##"T | | ???????????????????##"" !! | +----------------------------------------------------+ Best States ------------- Heat Dissipation 28 Energy Generation 14 Energy Capacity 160 Matter Stores 300 Matter Capacity 300 Sight Range 16 Terrain Scan Density 10 Evasion (%) 55 Item Schematics ----------------- None Robot Schematics ------------------ None Fabricated ------------ Nothing Alien Tech Used ----------------- None Achievements -------------- None Challenges ------------ None Game ------ Seed CombatTargetBotcube Manual? 0 Play Time 00:13:30 Cumulative 36.9 hours Start 2024.11.03 @ 18:28:29 End 2024.11.03 @ 18:40:00 Sessions 1 Manual Loads 0 Difficulty Rogue Special Mode None Game No. 43 Rogue 43 Adventurer 0 Explorer 0 Win Type - Total 0 Types 0/0/0/0/0/0/0/0/0 Lore% 12 Gallery% 29 Achievement% 23 Wizard Run 0 Options --------- Layout 1 ASCII 0 Keyboard 0 Movement Numpad Keybinds 0 Fullscreen 1 Font 32/SmallcapsGlow Map View 77x35 Zoom Use 0% Tactical HUD 1 Map Filters NONE Filters NONE Steam 1 RUN: 3f5f3348-1eb7-47d5-9432-5ef6b86ba7e6